fUSD/lending_fUSD_20240531
["ID","MTS","AMOUNT","RATE_DAILY","PERIOD"]
[328344480,1717197044745,-164.33056681,0.00033263,7]
[328344481,1717197044754,-256.4669063,0.00033267,2]
[328344482,1717197044764,-500.0,0.00033268,3]
[328344483,1717197044773,-500.0,0.00033268,3]
[328344484,1717197044782,-155.28676277,0.00033273,7]
[328344485,1717197044791,-211.6298137,0.00033275,7]
[328344486,1717197044800,-24531.43,0.00033276,2]
[328344487,1717197044809,-14022.51494437,0.00033276,4]
[328344488,1717197044818,-500.0,0.00033276,2]
[328344489,1717197044830,-500.0,0.00033276,11]
[328344490,1717197044839,-500.0,0.00033276,11]
[328344491,1717197044848,-850.96,0.00033276,11]
[328344492,1717197044858,-500.0,0.00033276,11]
[328344493,1717197044867,-500.0,0.00033276,11]
[328344494,1717197044877,-500.0,0.00033276,11]
[328344495,1717197044887,-500.0,0.00033277,3]
[328344496,1717197044896,-221.04755809,0.00033277,3]
[328344497,1717197044906,-500.0,0.00033277,3]
[328344498,1717197044915,-500.0,0.00033277,2]
[328344499,1717197044924,-500.0,0.00033277,2]
[328344500,1717197044933,-500.0,0.00033277,2]
[328344501,1717197044942,-500.0,0.00033277,2]
[328344502,1717197044951,-500.0,0.00033277,2]
[328344503,1717197044960,-500.0,0.00033277,2]
[328344504,1717197044969,-500.0,0.00033277,2]
[328344505,1717197044978,-500.0,0.00033277,2]
[328344506,1717197044987,-500.0,0.00033277,2]
[328344507,1717197044996,-219.761133,0.00033277,7]
[328344508,1717197045005,-151.0,0.00033277,7]
[328344509,1717197045014,-5309.4423426,0.00033277,2]
[328344510,1717197045023,-5115.145496,0.00033277,2]
[328344511,1717197045032,-4920.8486493,0.00033277,2]
[328344512,1717197045041,-4726.5518027,0.00033277,2]
[328344513,1717197045050,-4532.254956,0.00033277,2]
[328344514,1717197045060,-836.0473087,0.00033277,2]
[328344515,1717197045068,-805.4525032,0.00033277,2]
[328344516,1717197045079,-774.8576977,0.00033277,2]
[328344517,1717197045089,-744.2628922,0.00033277,2]
[328344518,1717197045098,-713.6680867,0.00033277,2]
[328344519,1717197045107,-609.4621597,0.00033277,2]
[328344520,1717197045116,-587.159144,0.00033277,2]
[328344521,1717197045124,-564.8561283,0.00033277,2]
[328344522,1717197045134,-542.5531127,0.00033277,2]
[328344523,1717197045143,-520.250097,0.00033277,2]
[328344524,1717197045151,-151.0,0.00033277,7]
[328344525,1717197045161,-500.0,0.00033277,2]
[328344526,1717197045170,-500.0,0.00033277,2]
[328344527,1717197045179,-500.0,0.00033277,2]
[328344528,1717197045188,-500.0,0.00033277,2]
[328344529,1717197045197,-500.0,0.00033277,2]
[328344530,1717197045206,-500.0,0.00033277,2]
[328344531,1717197045215,-500.0,0.00033277,2]
[328344532,1717197045224,-500.0,0.00033277,2]
[328344533,1717197045234,-151.0,0.00033277,7]
[328344534,1717197045243,-1838.2856476,0.00033277,2]
[328344535,1717197045252,-1771.0143446,0.00033277,2]
[328344536,1717197045261,-1703.7430416,0.00033277,2]
[328344537,1717197045270,-1636.4717386,0.00033277,2]
[328344538,1717197045279,-1569.2004356,0.00033277,2]
[328344539,1717197045289,-151.0,0.00033277,7]
[328344540,1717197045299,-51727.9184427,0.00033277,2]
[328344541,1717197045308,-49834.9566609,0.00033277,2]
[328344542,1717197045317,-47941.994879,0.00033277,2]
[328344543,1717197045326,-46049.0330972,0.00033277,2]
[328344544,1717197045336,-44156.0713154,0.00033277,2]
[328344545,1717197045345,-151.0,0.00033277,7]
[328344546,1717197045354,-151.0,0.00033277,7]
[328344547,1717197045363,-151.0,0.00033277,7]
[328344548,1717197045373,-151.0,0.00033277,7]
[328344549,1717197045383,-231.777803,0.00033277,7]
[328344550,1717197045392,-151.0,0.00033277,7]
[328344551,1717197045401,-151.0,0.00033277,7]
[328344552,1717197045412,-151.0,0.00033277,7]
[328344553,1717197045421,-151.0,0.00033277,7]
[328344554,1717197045430,-1153.229946,0.00033277,7]
[328344555,1717197045439,-1153.229946,0.00033277,7]
[328344556,1717197045448,-151.0,0.00033277,7]
[328344557,1717197045457,-151.0,0.00033277,7]
[328344558,1717197045466,-151.0,0.00033277,7]
[328344559,1717197045476,-151.0,0.00033277,7]
[328344560,1717197045486,-352.352018,0.00033277,7]
[328344561,1717197045495,-352.352018,0.00033277,7]
[328344562,1717197045505,-352.352018,0.00033277,7]
[328344563,1717197045514,-11454.10501107,0.0003328,3]
[328344564,1717197045523,-150.0,0.00033282,2]
[328344565,1717197045532,-472.30551812,0.00033284,7]
[328344566,1717197045542,-500.0,0.00033287,2]
[328344567,1717197045551,-151.0,0.00033287,7]
[328344570,1717197045560,-500.0,0.00033287,11]
[328344573,1717197045570,-850.96,0.00033287,11]
[328344575,1717197045579,-1153.229946,0.00033287,7]
[328344576,1717197045589,-500.0,0.00033287,11]
[328344577,1717197045599,-1153.229946,0.00033287,7]
[328344578,1717197045608,-6204.39297144,0.00033288,4]
[328344579,1717197045942,-352.352018,0.00033277,7]
[328344580,1717197045952,-7270.60702856,0.00033288,4]
[328344581,1717197045961,-24316.0,0.00033288,4]
[328344582,1717197045971,-1790.0,0.00033288,4]
[328344583,1717197045980,-525.17,0.00033288,2]
[328344584,1717197045991,-525.17,0.00033288,2]
[328344585,1717197046000,-525.17,0.00033288,2]
[328344586,1717197046009,-525.17,0.00033288,2]
[328344587,1717197046019,-352.63,0.00033288,2]
[328344589,1717197046028,-421.7,0.00033288,2]
[328344590,1717197046038,-150.0,0.00033288,2]
[328344591,1717197046047,-150.0,0.00033288,2]
[328344592,1717197046174,-150.0,0.00033288,2]
[328344593,1717197046184,-150.0,0.00033288,2]
[328344594,1717197046194,-150.0,0.00033288,2]
[328344595,1717197046203,-150.0,0.00033288,2]
[328344596,1717197046213,-150.0,0.00033288,2]
[328344597,1717197046222,-421.7,0.00033288,2]
[328344598,1717197046231,-349.34,0.00033288,2]
[328344599,1717197046241,-421.7,0.00033288,2]
[328344600,1717197046250,-421.7,0.00033288,2]
[328344601,1717197046259,-421.7,0.00033288,2]
[328344602,1717197046269,-525.17,0.00033288,2]
[328344603,1717197046278,-525.17,0.00033288,2]
[328344604,1717197046287,-416.77,0.00033288,2]
[328344605,1717197046297,-219.761133,0.00033288,7]
[328344606,1717197046306,-151.0,0.00033288,7]
[328344607,1717197046315,-151.0,0.00033288,7]
[328344608,1717197046324,-151.0,0.00033288,7]
[328344609,1717197046334,-151.0,0.00033288,7]
[328344610,1717197046343,-151.0,0.00033288,7]
[328344611,1717197046352,-151.0,0.00033288,7]
[328344612,1717197046361,-151.0,0.00033288,7]
[328344613,1717197046370,-151.0,0.00033288,7]
[328344614,1717197046380,-151.0,0.00033288,7]
[328344615,1717197046389,-151.0,0.00033288,7]
[328344616,1717197046399,-164.33056681,0.00033289,7]
[328344617,1717197046408,-256.4669063,0.0003329,2]
[328344618,1717197046419,-211.6298137,0.00033291,7]
[328344619,1717197046428,-500.0,0.00033297,11]
[328344620,1717197046437,-95131.56724982,0.00033298,9]
[328344621,1717197046637,-11246.4996,0.00033298,9]
[328344622,1717197046650,-7398.3531946,0.00033298,9]
[328344623,1717197046662,-3425.568079,0.00033298,9]
[328344624,1717197046673,-10995.55207752,0.00033298,9]
[328344625,1717197046683,-498.97323089,0.00033298,4]
[328344626,1717197046693,-155.39881523,0.00033298,4]
[328344627,1717197046702,-155.0,0.00033298,4]
[328344628,1717197046712,-262.2308945,0.00033298,4]
[328344629,1717197046721,-155.0,0.00033298,4]
[328344630,1717197046731,-1897.83949895,0.00033298,4]
[328344631,1717197046740,-180.27358525,0.00033298,4]
[328344632,1717197046750,-155.0,0.00033298,4]
[328344633,1717197046759,-308.00943843,0.00033298,4]
[328344634,1717197046768,-428.57808424,0.00033298,4]
[328344635,1717197046778,-88.79904985,0.00033298,4]
[328344636,1717197046790,-192.01154398,0.00033298,4]
[328344637,1717197046800,-155.3839327,0.00033298,4]
[328344638,1717197046809,-155.58820608,0.00033298,4]
[328344639,1717197046818,-5111.41614313,0.00033298,10]
[328344640,1717197046833,-788.58385687,0.00033298,10]
[328344641,1717197046843,-1447.14552903,0.00033298,4]
[328344642,1717197046852,-783.2640015,0.00033298,4]
[328344643,1717197046862,-1033.09664876,0.00033298,4]
[328344644,1717197046872,-326.77265491,0.00033298,4]
[328344645,1717197046884,-155.4310936,0.00033298,4]
[328344646,1717197046895,-298.22372864,0.00033298,4]
[328344647,1717197046905,-228.90486939,0.00033298,4]
[328344648,1717197046916,-474.9516767,0.00033298,4]
[328344649,1717197046926,-155.78110347,0.00033298,4]
[328344650,1717197046935,-156.82720984,0.00033298,4]
[328344651,1717197046946,-155.61849233,0.00033298,4]
[328344652,1717197046956,-4501.66673496,0.00033298,4]
[328344653,1717197046969,-5773.40687859,0.00033298,4]
[328344654,1717197046980,-155.2031768,0.00033298,4]
[328344655,1717197046991,-155.0,0.00033298,4]
[328344656,1717197047002,-222.61816632,0.00033298,4]
[328344657,1717197047012,-157.28176909,0.00033298,4]
[328344658,1717197047022,-155.62562668,0.00033298,4]
[328344659,1717197047031,-213.48174907,0.00033298,4]
[328344660,1717197047040,-172.07438784,0.00033298,4]
[328344661,1717197047048,-155.80480552,0.00033298,4]
[328344662,1717197047058,-243.39321182,0.00033298,4]
[328344663,1717197047067,-155.41772054,0.00033298,4]
[328344664,1717197047076,-156.12171292,0.00033298,4]
[328344665,1717197047085,-159.99510582,0.00033298,4]
[328344666,1717197047095,-160.04283443,0.00033298,4]
[328344667,1717197047104,-263.92947485,0.00033298,4]
[328344668,1717197047115,-277.26305807,0.00033298,4]
[328344669,1717197047125,-155.0,0.00033298,4]
[328344670,1717197047134,-156.11508961,0.00033298,4]
[328344671,1717197047144,-356.81836994,0.00033298,4]
[328344672,1717197047154,-157.26178235,0.00033298,4]
[328344673,1717197047164,-203.24524876,0.00033298,4]
[328344674,1717197047174,-177.83380832,0.00033298,4]
[328344675,1717197047183,-387.72008642,0.00033298,4]
[328344676,1717197047193,-681.20420342,0.00033298,4]
[328344677,1717197047202,-2825.61754288,0.00033298,4]
[328344678,1717197047212,-155.96188869,0.00033298,2]
[328344679,1717197047222,-277.24488587,0.00033298,4]
[328344680,1717197047231,-178.06293923,0.00033298,4]
[328344681,1717197047240,-155.0,0.00033298,4]
[328344682,1717197047251,-31.15488536,0.00033298,4]
[328344683,1717197047339,-1040.24120268,0.00015074,2]
[328344684,1717197047349,-1045.47618149,0.00015074,2]
[328344685,1717197047358,-302.74640451,0.00032199,4]
[328344686,1717197047368,-525.17,0.00032466,2]
[328344687,1717197047377,-150.0,0.00032466,2]
[328344688,1717197047386,-421.7,0.00032466,2]
[328344689,1717197047395,-150.0,0.00032466,2]
[328344690,1717197047405,-1000.0,0.00033,7]
[328344691,1717197047415,-124.20003343,0.00033298,4]
[328344692,1717197047426,-1221.37277058,0.00033298,4]
[328344693,1717197047435,-796.88272967,0.00033298,14]
[328344694,1717197047444,-308.67571736,0.00033298,4]
[328344695,1717197047454,-164.49694767,0.00033298,4]
[328344696,1717197047463,-1806.88485408,0.00033298,4]
[328344697,1717197047473,-790.57010671,0.00033298,4]
[328344698,1717197047482,-246.34239043,0.00033298,4]
[328344699,1717197047492,-155.33225386,0.00033298,4]
[328344700,1717197047502,-155.41641841,0.00033298,2]
[328344701,1717197047511,-200.0,0.00033298,2]
[328344702,1717197047521,-155.19683835,0.00033298,4]
[328344703,1717197047530,-3885.71161861,0.00033298,2]
[328344704,1717197047539,-155.31111537,0.00033298,4]
[328344705,1717197047548,-155.48552138,0.00033298,4]
[328344706,1717197047557,-156.38886085,0.00033298,4]
[328344707,1717197047566,-63.05477403,0.00033298,4]
[328344708,1717197047577,-347.16882387,0.00033298,4]
[328344709,1717197047587,-64.15996285,0.00033298,4]
[328344710,1717197047600,-235.10592553,0.00033298,4]
[328344711,1717197047609,-134.27964581,0.00033298,30]
[328344712,1717197047620,-415.91982217,0.00033298,30]
[328344713,1717197047631,-157.21800006,0.00033298,4]
[328344714,1717197047640,-155.0,0.00033298,4]
[328344715,1717197047652,-155.38134953,0.00033298,4]
[328344716,1717197047662,-533.23069534,0.00033298,4]
[328344717,1717197047673,-98.40698702,0.00033298,2]
[328344718,1717197047684,-1826.16071896,0.00033298,2]
[328344719,1717197047693,-193.34920584,0.00033298,4]
[328344720,1717197047703,-295.77133657,0.00033298,2]
[328344721,1717197047712,-168.1727453,0.00033298,4]
[328344722,1717197047722,-155.9705427,0.00033298,4]
[328344723,1717197047733,-718.26947629,0.00033298,4]
[328344724,1717197047744,-274.64908023,0.00033298,4]
[328344725,1717197047754,-328.85288026,0.00033298,4]
[328344726,1717197047765,-445.32487765,0.00033298,3]
[328344727,1717197047774,-257.91446201,0.00033298,2]
[328344728,1717197047784,-4575.84012937,0.00033298,4]
[328344729,1717197047795,-198.87803042,0.00033298,4]
[328344730,1717197047806,-170.83478771,0.00033298,4]
[328344731,1717197047816,-155.39278732,0.00033298,4]
[328344732,1717197047826,-215.46815451,0.00033298,4]
[328344733,1717197047836,-155.91493806,0.00033298,4]
[328344734,1717197047848,-234.13424526,0.00033298,8]
[328344735,1717197047858,-155.35705473,0.00033298,4]
[328344736,1717197047867,-151.0,0.00033298,7]
[328344737,1717197047877,-151.0,0.00033298,7]
[328344738,1717197047887,-352.352018,0.00033298,7]
[328344739,1717197047897,-352.352018,0.00033298,7]
[328344740,1717197047907,-282.51566918,0.00033299,2]
[328344741,1717197047920,-241.0,0.00033299,2]
[328344742,1717197047929,-241.0,0.00033299,2]
[328344743,1717197047938,-241.0,0.00033299,2]
[328344744,1717197047947,-241.0,0.00033299,2]
[328344745,1717197047956,-241.0,0.00033299,2]
[328344746,1717197047965,-241.0,0.00033299,2]
[328344747,1717197047976,-241.0,0.00033299,2]
[328344748,1717197047987,-241.0,0.00033299,2]
[328344749,1717197047998,-500.0,0.00033299,2]
[328344750,1717197048007,-500.0,0.00033299,2]
[328344751,1717197048017,-500.0,0.00033299,2]
[328344752,1717197048025,-332.89,0.00033299,2]
[328344753,1717197048035,-500.0,0.00033299,11]
[328344754,1717197048044,-500.0,0.00033299,11]
[328344755,1717197048053,-500.0,0.00033299,11]
[328344756,1717197048063,-500.0,0.00033299,11]
[328344757,1717197048072,-500.0,0.00033299,11]
[328344758,1717197048082,-500.0,0.00033299,11]
[328344759,1717197048091,-500.0,0.00033299,11]
[328344760,1717197048101,-500.0,0.00033299,11]
[328344761,1717197048110,-500.0,0.00033299,11]
[328344762,1717197048119,-500.0,0.00033299,11]
[328344763,1717197048128,-500.0,0.00033299,11]
[328344764,1717197048138,-500.0,0.00033299,11]
[328344765,1717197048148,-183.40619089,0.00033299,11]
[328344766,1717197048157,-500.0,0.00033299,11]
[328344767,1717197048168,-319.49124871,0.00033299,11]
[328344768,1717197048176,-850.96,0.00033299,11]
[328344769,1717197048186,-850.96,0.00033299,11]
[328344770,1717197048195,-850.96,0.00033299,11]
[328344771,1717197048204,-850.96,0.00033299,11]
[328344772,1717197048214,-850.96,0.00033299,11]
[328344773,1717197048224,-850.96,0.00033299,11]
[328344774,1717197048234,-850.96,0.00033299,11]
[328344775,1717197048243,-850.96,0.00033299,11]
[328344776,1717197048254,-850.96,0.00033299,11]
[328344777,1717197048264,-850.96,0.00033299,11]
[328344778,1717197048275,-850.96,0.00033299,11]
[328344779,1717197048284,-850.96,0.00033299,11]
[328344780,1717197048294,-850.96,0.00033299,11]
[328344781,1717197048303,-850.96,0.00033299,11]
[328344782,1717197048313,-850.96,0.00033299,11]
[328344783,1717197048322,-850.96,0.00033299,11]
[328344784,1717197048333,-851.12818601,0.00033299,11]
[328344785,1717197048343,-500.0,0.00033299,11]
[328344786,1717197048354,-500.0,0.00033299,11]
[328344787,1717197048364,-500.0,0.00033299,11]
[328344788,1717197048374,-500.0,0.00033299,11]
[328344789,1717197048384,-500.0,0.00033299,11]
[328344790,1717197048394,-500.0,0.00033299,11]
[328344791,1717197048403,-500.0,0.00033299,11]
[328344792,1717197048413,-500.0,0.00033299,11]
[328344793,1717197048422,-500.0,0.00033299,11]
[328344794,1717197048431,-639.36000001,0.00033299,11]
[328344795,1717197048441,-500.0,0.00033299,11]
[328344796,1717197048450,-500.0,0.00033299,11]
[328344797,1717197048459,-500.0,0.00033299,11]
[328344798,1717197048469,-418.38974296,0.00033299,11]
[328344799,1717197048479,-151.0,0.00033299,7]
[328344800,1717197048489,-278.52984609,0.000333,5]
[328344801,1717197048498,-17096.43304756,0.000333,5]
[328344802,1717197048602,-608.43248,0.000333,5]
[328344803,1717197048615,-1332.64491383,0.000333,5]
[328344804,1717197048627,-983.86902031,0.000333,5]
[328344805,1717197048638,-585.22668101,0.000333,5]
[328344806,1717197048650,-383.24446125,0.000333,5]
[328344807,1717197048687,-375.93228978,0.000333,5]
[328344808,1717197048699,-2055.95637963,0.000333,5]
[328344809,1717197048710,-1232.59825842,0.000333,5]
[328344810,1717197048740,-36932.79166602,0.00015074,2]
[328344811,1717197048749,-203.09110545,0.00032465,4]
[328344812,1717197048760,-352.63,0.00032466,2]
[328344813,1717197048769,-154375.62851389,0.000333,5]
[328344818,1717197701024,286.75,0.00027562,60]
[328344819,1717197945955,-155.0,0.00017116,2]
[328344820,1717197945974,-620.00333459,0.00017116,2]
[328344821,1717197945992,-234.70114228,0.00017116,2]
[328344822,1717197946012,-155.0,0.00017117,2]
[328344823,1717197946032,-155.0,0.00017117,2]
[328344824,1717197946051,-125.61378955,0.00017118,2]
[328344828,1717198232031,-620.00333459,0.00016908,2]
[328344829,1717198232041,-155.0,0.00016909,2]
[328344830,1717198232050,-155.0,0.00016909,2]
[328344831,1717198232059,-155.0,0.0001691,2]
[328344832,1717198232068,-437.04924005,0.00016911,2]
[328344833,1717198232078,-813.35,0.00017113,2]
[328344834,1717198232087,-1045.47618149,0.00017118,2]
[328344835,1717198232096,-1041.04332356,0.00017118,2]
[328344836,1717198232105,-155.0,0.00017238,2]
[328344837,1717198232114,-1750.43807122,0.00017239,2]
[328344838,1717198232124,-150.0,0.00017259,2]
[328344839,1717198232133,-499.99,0.00017534,2]
[328344840,1717198232143,-378.83157048,0.00017807,2]
[328344841,1717198232152,-210.0,0.00018985,2]
[328344842,1717198232162,-411.07546451,0.00019,2]
[328344843,1717198232173,-234.44303977,0.0001945,2]
[328344844,1717198232182,-293.42814944,0.00019723,2]
[328344845,1717198232191,-182.0335277,0.00019723,2]
[328344846,1717198232199,-156.25407661,0.00019724,2]
[328344847,1717198232209,-644.64661214,0.00019725,2]
[328344848,1717198232218,-155.0,0.00019725,2]
[328344849,1717198232227,-158.77642645,0.0002,2]
[328344850,1717198232235,-155.0,0.0002,2]
[328344851,1717198232245,-226.49538654,0.000201,2]
[328344852,1717198232254,-2112.0,0.000204,2]
[328344853,1717198232263,-625.0,0.000204,2]
[328344854,1717198232274,-293.0,0.00020883,2]
[328344855,1717198232286,-166.24,0.00021918,2]
[328344856,1717198232295,-686.85451602,0.00022,2]
[328344857,1717198232307,-8327.39063905,0.00022,2]
[328344858,1717198232316,-2363.82,0.00023368,2]
[328344859,1717198232327,-7548.46,0.00023368,2]
[328344860,1717198232336,-2663.07,0.00023368,2]
[328344861,1717198232346,-433.83622735,0.00024,2]
[328344862,1717198232358,-473.22827161,0.00024,2]
[328344863,1717198232368,-153.6,0.00024384,2]
[328344864,1717198232378,-153.69,0.00024384,2]
[328344865,1717198232387,-818.88979131,0.00024899,2]
[328344867,1717198232397,-3617.4554534,0.000249,2]
[328344869,1717198232408,-3165.86053326,0.000249,2]
[328344871,1717198232420,-405.63,0.00024942,2]
[328344873,1717198232429,-547.45866534,0.00025502,2]
[328344875,1717198232438,-250.0,0.000259,2]
[328344877,1717198232448,-164.54,0.00026074,2]
[328344879,1717198232456,-2000.0,0.00026104,2]
[328344881,1717198232465,-158.87,0.00026224,2]
[328344883,1717198232474,-368.23,0.00026743,2]
[328344885,1717198232484,-1255.06487032,0.00026819,2]
[328344887,1717198232496,-418.48512968,0.00026819,2]
[328344889,1717198232505,-200.0,0.00026819,2]
[328344891,1717198232515,-1052.68602472,0.00027,2]
[328344893,1717198232526,-928.73620431,0.00027,2]
[328344895,1717198232538,-2040.06033897,0.00027,2]
[328344896,1717198232546,-1136.07966103,0.00027093,2]
[328344897,1717198232557,-22753.92033897,0.00027093,2]
[328344898,1717198232567,-250.0,0.00027123,2]
[328344899,1717198232576,-405.63,0.00027206,2]
[328344900,1717198232585,-805.74854483,0.0002739,2]
[328344901,1717198232594,-666.83,0.00027468,2]
[328344902,1717198232603,-250.0,0.00027562,2]
[328344903,1717198232612,-1201.56349463,0.00027562,2]
[328344905,1717198232621,-257.58103386,0.00027562,2]
[328344906,1717198232630,-200.0,0.00027562,2]
[328344908,1717198232639,-500.0,0.00027562,2]
[328344910,1717198232648,-446.21121734,0.00027562,2]
[328344912,1717198232657,-200.0,0.00027651,2]
[328344914,1717198232666,-500.0,0.00027654,2]
[328344916,1717198232676,-2520.9852,0.00028078,2]
[328344918,1717198232685,-150.45,0.00028082,2]
[328344920,1717198232694,-167.0,0.00028484,2]
[328344922,1717198232703,-175.65,0.00028576,2]
[328344924,1717198232713,-175.65,0.00028583,2]
[328344926,1717198232722,-175.65,0.00028591,2]
[328344928,1717198232731,-175.65,0.00028598,2]
[328344930,1717198232741,-1207.2237,0.000286,2]
[328344932,1717198232750,-211.1015,0.000286,2]
[328344934,1717198232759,-1256.0687,0.000286,2]
[328344936,1717198232769,-175.65,0.00028606,2]
[328344938,1717198232778,-175.65,0.00028613,2]
[328344940,1717198232786,-175.65,0.00028621,2]
[328344942,1717198232795,-175.65,0.00028628,2]
[328344944,1717198232804,-175.65,0.00028636,2]
[328344946,1717198232813,-175.65,0.00028643,2]
[328344947,1717198232822,-175.65,0.00028651,2]
[328344950,1717198232831,-175.65,0.00028658,2]
[328344951,1717198232841,-180.0,0.0002866,2]
[328344953,1717198232850,-175.65,0.00028666,2]
[328344955,1717198232860,-175.65,0.00028673,2]
[328344957,1717198232869,-175.65,0.00028681,2]
[328344959,1717198232879,-175.65,0.00028688,2]
[328344961,1717198232888,-175.65,0.00028696,2]
[328344963,1717198232897,-39253.4903,0.000287,2]
[328344965,1717198232906,-175.65,0.00028703,2]
[328344967,1717198232915,-175.65,0.00028711,2]
[328344969,1717198232924,-175.65,0.00028718,2]
[328344971,1717198232933,-1485.47796211,0.00029,2]
[328344973,1717198232941,-684.28,0.00029286,2]
[328344975,1717198232950,-150.45,0.00029452,2]
[328344977,1717198232960,-405.63,0.0002947,2]
[328344979,1717198232969,-1673.55,0.00029559,2]
[328344981,1717198232979,-452.09796917,0.00029635,2]
[328344983,1717198232988,-648.55,0.00029659,2]
[328344985,1717198232997,-2008.28901866,0.000299,2]
[328344987,1717198233006,-225.80800784,0.00029968,3]
[328344989,1717198233015,-266.25369553,0.00029968,2]
[328344991,1717198233023,-167.0,0.00030051,2]
[328344993,1717198233032,-200.0,0.00030137,2]
[328344995,1717198233041,-200.0,0.00030172,2]
[328344997,1717198233051,-150.0,0.00030199,2]
[328344999,1717198233061,-334.09113896,0.00031002,7]
[328345001,1717198233070,-163.60596469,0.00031004,7]
[328345003,1717198233080,-334.09113896,0.0003102,7]
[328345005,1717198233090,-155.33171162,0.00031025,7]
[328345007,1717198233099,-154.6302252,0.00031034,7]
[328345009,1717198233108,-800.0,0.00031041,2]
[328345011,1717198233117,-154.11866915,0.00031043,7]
[328345013,1717198233126,-154.11866915,0.00031066,7]
[328345015,1717198233135,-800.0,0.00031068,2]
[328345017,1717198233145,-166.66666667,0.00031078,7]
[328345019,1717198233154,-652.78230323,0.00031085,7]
[328345021,1717198233163,-150.4670561,0.00031089,7]
[328345023,1717198233174,-154.6302252,0.0003111,7]
[328345025,1717198233183,-153.16583406,0.00031117,7]
[328345027,1717198233194,-183.32800919,0.00031135,7]
[328345030,1717198233204,-196.88615978,0.00031142,7]
[328345031,1717198233213,-652.78230323,0.0003116,7]
[328345033,1717198233222,-166.66666667,0.0003118,7]
[328345035,1717198233232,-334.09113896,0.0003118,7]
[328345038,1717198233241,-28210.46584459,0.00031198,10]
[328345040,1717198233250,-800.0,0.00031205,2]
[328345041,1717198233259,-310.52154493,0.00031229,4]
[328345043,1717198233268,-4507.58877151,0.00031286,10]
[328345045,1717198233281,-4238.6773672,0.00031298,7]
[328345047,1717198233290,-150.0,0.00031305,7]
[328345049,1717198233300,-196.88615978,0.00031314,7]
[328345051,1717198233309,-334.09113896,0.00031336,7]
[328345053,1717198233319,-150.0,0.00031366,7]
[328345055,1717198233330,-152.81332524,0.00031372,7]
[328345057,1717198233340,-94.32648845,0.00031375,7]
[328345062,1717198233378,-67.12427382,0.00031375,7]
[328345064,1717198233388,-154.11866915,0.00031382,7]
[328345066,1717198233397,-812.45705703,0.00031385,7]
[328345069,1717198233409,-3426.22031017,0.00031385,7]
[328345070,1717198233420,-196.88615978,0.00031386,7]
[328345072,1717198233430,-150.4670561,0.00031408,7]
[328345074,1717198233439,-1202.61854558,0.0003142,10]
[328345077,1717198233449,-1673.69726498,0.0003142,10]
[328345079,1717198233460,-5611.57327231,0.0003142,10]
[328345081,1717198233472,-630.01271505,0.0003142,10]
[328345083,1717198233483,-455.94522447,0.0003142,10]
[328345086,1717198233494,-346.53616094,0.0003142,10]
[328345088,1717198233505,-408.75323981,0.0003142,10]
[328345090,1717198233519,-1458.18502786,0.0003142,10]
[328345095,1717198233555,-16423.1443935,0.0003142,10]
[328345097,1717198233565,-1524.81756632,0.00031422,4]
[328345099,1717198233575,-152.81332524,0.00031427,7]
[328345101,1717198233584,-154.80833393,0.00031457,7]
[328345103,1717198233593,-334.09113896,0.00031462,7]
[328345105,1717198233602,-2500.0,0.00031477,2]
[328345107,1717198233612,-4507.5887715,0.00031499,10]
[328345109,1717198233621,-4238.6773672,0.00031502,7]
[328345111,1717198233630,-154.92222763,0.00031544,7]
[328345113,1717198233640,-7500.0,0.00031547,2]
[328345115,1717198233649,-154.6302252,0.00031549,7]
[328345117,1717198233659,-4238.6773672,0.00031562,7]